Cogmind - Beta 16 @@@ ROGUE MODE // 2026.02.03 @ 18:29:03 Player: ILikeVoltron Result: Self-destructed Performance ------------- Evolutions (3) 1500 Regions Visited (5) 1000 Robots Destroyed (70) 350 Value Destroyed (1497) 1497 Prototype IDs (5) 100 Alien Tech Used (0) 0 Bonus (0) 0 TOTAL SCORE: 4447 Bonus ------- None Cogmind --------- Core Integrity 649/700 Matter 288/300 Energy 6/100 System Corruption 8% Temperature Cool (0) Movement Rolling (90) Location -7/Waste Parts ------- > --- POWER (2) -------- (None) > --- PROPULSION (4) --- Armored Huge Wheel Armored Huge Wheel > --- UTILITY (4) ------ Improved Cooling System High-capacity Storage Unit Seismic Detector Improved Targeting Computer > --- WEAPON (3) ------- (None) > --- INVENTORY (20) --- Improved Treads Medium Treads Armored Huge Wheel Armored Huge Wheel Large Storage Unit High-capacity Matter Pod (200) Terrain Scan Processor Hardened Medium Armor Plating Hardened Medium Armor Plating Improved Medium Armor Plating Hacking Suite Advanced Beam Rifle Advanced Beam Cannon Heavy Assault Rifle Rocket Launcher Missile Launcher Heavy Rocket Launcher Great Maul Peak State ------------ > --- POWER ------------ Light Ion Engine Heavy Ion Engine > --- PROPULSION ------- Armored Huge Wheel Armored Huge Wheel > --- UTILITY ---------- Improved Cooling System High-capacity Storage Unit Seismic Detector Improved Targeting Computer > --- WEAPON ----------- Advanced Beam Rifle Advanced Beam Rifle Advanced Beam Rifle > --- INVENTORY -------- Improved Treads Medium Treads Armored Huge Wheel Armored Huge Wheel Large Storage Unit High-capacity Matter Pod Terrain Scan Processor Hardened Medium Armor Plating Hardened Medium Armor Plating Improved Medium Armor Plating Hacking Suite Advanced Beam Rifle Advanced Beam Cannon Heavy Assault Rifle Rocket Launcher Missile Launcher Heavy Rocket Launcher Great Maul [Rating: 46] Favorites ----------- Power Ion Engine Engine Ion Engine Propulsion Light Treads Treads Light Treads Leg Aluminum Leg Wheel Armored Huge Wheel Utility Large Storage Unit Device Improved Heat Sink Storage Large Storage Unit Processor Improved Targeting Computer Protection Light Armor Plating Weapon Light Assault Rifle Energy Gun Advanced Beam Rifle Energy Cannon Beam Cannon Ballistic Gun Light Assault Rifle Special Weapon Mining Laser Impact Weapon Heavy Hammer Build | -11 -10 -9 -8 -7 -7 ------- Run | Yrd Mat Mat Mat Fac Was Slots Evolved 6 | . . 2 2 2 . Power 1 | . . . . 1 . Propulsion 2 | . . 1 1 . . Utility 2 | . . 1 . 1 . Weapon 1 | . . . 1 . . Parts Attached 54 | 2 13 25 11 3 . Power 5 | . 1 3 . 1 . Engine 5 | . 1 3 . 1 . Core . | . . . . . . Reactor . | . . . . . . Propulsion 13 | . 3 7 3 . . Treads 7 | . . 6 1 . . Leg 4 | . 3 1 . . . Wheel 2 | . . . 2 . . Hover . | . . . . . . Flight . | . . . . . . Utility 15 | 1 4 6 2 2 . Device 7 | 1 3 1 . 2 . Storage 3 | . 1 1 1 . . Processor 2 | . . 2 . . . Hackware . | . . . . . . Protection 3 | . . 2 1 . . Artifact . | . . . . . . Weapon 21 | 1 5 9 6 . . Energy Gun 8 | 1 . 3 4 . . Energy Cannon 2 | . 1 . 1 . . Ballistic Gun 8 | . 3 5 . . . Ballistic Cannon . | . . . . . . Launcher . | . . . . . . Special Weapon 1 | . 1 . . . . Impact Weapon 2 | . . 1 1 . . Slashing Weapon . | . . . . . . Piercing Weapon . | . . . . . . Special Melee Weapon . | . . . . . . Unidentified Prototypes 1 | . . 1 . . . Parts Lost 11 | . 4 5 . . 2 Power 2 | . 1 . . . 1 Propulsion 1 | . 1 . . . . Utility 6 | . 1 5 . . . Weapon 2 | . 1 . . . 1 Highest Loss Streak 4 | . 4 1 . . 2 To Critical Strikes . | . . . . . . Average Backups 12 | 6 8 14 16 17 18 Power . | 1 1 1 1 . . Propulsion 2 | 3 2 2 2 3 4 Utility 4 | . 3 3 6 7 7 Weapon 4 | 1 1 6 6 6 7 Tool/Special . | . . . . . . Unused Backups 35 | 6 6 6 3 2 12 Power 2 | 1 1 . . . . Propulsion 13 | 3 4 1 1 . 4 Utility 8 | 1 1 2 . 1 3 Weapon 12 | 1 . 3 2 1 5 Tool/Special . | . . . . . . Average Slot Usage (%) 96 | . 98 99 89 82 78 Engine 12 | . 13 11 9 14 12 Treads 12 | . . 29 18 . . Leg 12 | . 27 3 . . . Wheel 2 | . . . 9 15 15 Device 9 | . 13 5 . 13 15 Storage 11 | . 14 11 9 7 7 Processor 4 | . . 6 9 7 7 Protection 4 | . . 9 9 . . Energy Gun 6 | . 5 1 14 23 20 Energy Cannon 2 | . 4 . 3 . . Ballistic Gun 13 | . 14 19 . . . Special Weapon 1 | . 3 1 . . . Peak Build Rating 46 | 8 11 16 42 46 46 Average Rating 16 | 6 9 14 29 44 42 On Entrance 21 | 6 8 11 16 42 46 Avg Prop Armor Cover (%) 6 | . . 6 . . . Naked Turns . | . . . . . . Heaviest Build 67 | 12 28 37 67 66 60 Greatest Support 80 | 20 20 60 80 56 56 Greatest Overweight (x) 2 | . 1 2 2 1 1 Average Overweight (x) . | . . . . 1 . Largest Inventory Capacity 20 | 8 15 15 20 20 20 Average Capacity 13 | 8 8 15 18 20 20 Most Carried 20 | 8 15 15 20 20 20 Average Carried 12 | 6 8 14 17 19 20 Final Capacity 20 | 8 15 15 20 20 20 Final Carried 20 | 8 15 15 20 20 20 Class Distribution -------------------- 63% | Scavenger-Mutant 24% | Mutant 11% | Gunner Dominant Class ---------------- Scavenger-Mutant | -10/Materials Scavenger-Mutant | -9/Materials Scavenger-Mutant | -8/Materials Gunner | -7/Factory Mutant | -7/Waste Resources | -11 -10 -9 -8 -7 -7 ----------- Run | Yrd Mat Mat Mat Fac Was Matter Collected 1574 | 265 447 712 76 74 . Remotely . | . . . . . . Salvage Created 2388 | 241 658 1206 136 147 . Parts 142 | 17 32 85 6 2 . Haulers Intercepted 5 | . 1 2 2 . . Recyclers Shooed . | . . . . . . Parts Field Recycled . | . . . . . . Retrieved Matter . | . . . . . . Parts Self-Destructed . | . . . . . . Prevented . | . . . . . . Parts Restored . | . . . . . . Kills | -11 -10 -9 -8 -7 -7 ------- Run | Yrd Mat Mat Mat Fac Was Combat Hostiles Destroyed 45 | . 16 27 . 2 . Guns 36 | . 8 27 . 1 . Cannons 8 | . 8 . . . . Classes Destroyed 11 | 3 5 3 . . . Worker 5 | 2 . 2 1 . . Builder 1 | . . 1 . . . Tunneler 6 | 5 . 1 . . . Hauler 5 | . 1 2 2 . . Recycler 2 | 1 . 1 . . . Operator 2 | . 2 . . . . Watcher 4 | . 2 2 . . . Swarmer 15 | . 2 13 . . . Grunt 21 | . 14 7 . . . Brawler 1 | . . 1 . . . Sentry 8 | . . 6 . 2 . Best Kill Streak 6 | 6 6 5 1 1 . Combat Bots Only 6 | . 6 4 . 1 . Max Kills in Single Turn 2 | 1 1 2 1 1 . Gunslinging . | . . . . . . Exploded . | . . . . . . Melee . | . . . . . . Uniques/NPCs Destroyed . | . . . . . . Combat | -11 -10 -9 -8 -7 -7 -------- Run | Yrd Mat Mat Mat Fac Was Hostile Shots Fired 283 | . 89 151 2 36 5 Missed 82 | . 23 42 . 17 . Hits 201 | . 66 109 2 19 5 Melee 8 | . . 3 . . 5 Projectile 193 | . 66 106 2 19 . Critical Strikes 7 | . 1 4 . . 2 Damage Taken 2457 | . 741 1244 31 202 239 Core 496 | . 171 258 16 51 . Absorbed by Shields . | . . . . . . Core Remaining (%) 65 | 100 31 35 97 . . Volleys Fired 205 | 14 79 97 8 7 . Largest 3 | 2 2 2 2 3 . Hottest 183 | 90 110 100 113 183 . Shots Fired 398 | 27 148 191 11 21 . Gun 350 | 27 103 189 10 21 . Cannon 36 | . 35 . 1 . . Launcher . | . . . . . . Special 12 | . 10 2 . . . Kinetic 256 | . 68 188 . . . Thermal 138 | 27 80 2 8 21 . Explosive . | . . . . . . Electromagnetic 4 | . . 1 3 . . Robot Hit Streak 23 | 5 7 20 23 13 . Robot Miss Streak 6 | 3 3 6 . 1 . Penetration Max . | . . . . . . Secondary Targets 3 | . 1 2 . . . Max Gunslinging Chain 1 | . 1 1 . . . Shots Hit Robots 265 | 14 91 131 11 18 . Core Hits 111 | 9 35 59 2 6 . Critical Kills 1 | . . 1 . . . Critical Parts Destroyed 1 | . . 1 . . . Critical Strikes 7 | . 1 2 1 3 . Burn 5 | . 1 . 1 3 . Destroy 2 | . . 2 . . . Melee Attacks 1 | . . . 1 . . Impact 1 | . . . 1 . . Slashing . | . . . . . . Piercing . | . . . . . . Sneak Attacks 1 | . . . 1 . . Combat Hostiles . | . . . . . . Follow-up Attacks . | . . . . . . Damage Inflicted 3473 | 165 1138 1561 249 360 . Guns 2780 | 165 639 1483 133 360 . Cannons 492 | . 471 . 21 . . Explosions 78 | . . 78 . . . Melee 95 | . . . 95 . . Ramming 4 | . 4 . . . . Kinetic 1830 | . 363 1467 . . . Thermal 1481 | 165 771 78 107 360 . Explosive . | . . . . . . Electromagnetic 63 | . . 16 47 . . Impact 95 | . . . 95 . . Slashing . | . . . . . . Piercing . | . . . . . . Highest Corruption 8 | . . 5 4 . 8 Average Corruption 4 | . . 5 3 . 8 Corruption Purged . | . . . . . . Corruption Blocked . | . . . . . . Effects 29 | . . 19 8 . 2 Message Errors 5 | . . 4 1 . . Matter Fused 5 | . . 3 1 . 1 Heat Flow Errors 4 | . . 1 3 . . Energy Discharges 5 | . . 4 1 . . Parts Rejected 2 | . . 1 . . 1 Parts Fused 1 | . . . 1 . . Data Loss (minor) 3 | . . 3 . . . Data Loss (major) 2 | . . 2 . . . Alerts 2 | . . 1 1 . . Overload Shots . | . . . . . . Overflow Damage 124 | . . 38 86 . . Projectiles 6 | . . . 6 . . Explosions 38 | . . 38 . . . Melee 80 | . . . 80 . . Knockbacks . | . . . . . . Impact . | . . . . . . Kinetic . | . . . . . . Secondary . | . . . . . . Self-Inflicted Damage 109 | . . 109 . . . Shots 1 | . . 1 . . . Rammed . | . . . . . . Targets Rammed 1 | . 1 . . . . Kicked 1 | . 1 . . . . Crushed . | . . . . . . Highest Temperature 218 | 120 218 96 208 112 . Average Temperature 53 | 42 78 14 70 53 . Received Heat Transfer 714 | . 405 252 9 48 . Siege Activations . | . . . . . . Martial Activations . | . . . . . . Shielding Activations . | . . . . . . Robots Disrupted . | . . . . . . Combat Hostiles . | . . . . . . Robots Corrupted . | . . . . . . Combat Hostiles . | . . . . . . Parts Fried 3 | . . . 3 . . Impact Corruptions 2 | . . . 2 . . Robots Melted 1 | . . . . 1 . Combat Hostiles 1 | . . . . 1 . Parts Melted 6 | . 4 . 1 1 . Heat Transferred 3595 | 422 1902 50 333 888 . Parts Sabotaged . | . . . . . . Parts Stolen . | . . . . . . Parts Stripped . | . . . . . . Power Chain Reactions . | . . . . . . Alert | -11 -10 -9 -8 -7 -7 ------- Run | Yrd Mat Mat Mat Fac Was Maximum Alert Level 1 | . . 1 . . . Low Security (%) 79 | 100 100 41 100 100 100 Level 1 20 | . . 58 . . . Level 2 . | . . . . . . Level 3 . | . . . . . . Level 4 . | . . . . . . Level 5 . | . . . . . . High Security . | . . . . . . Max Security . | . . . . . . Peak Influence 380 | 15 144 380 144 30 7 Initial 144 | . . . 144 15 7 Average 108 | 5 61 211 89 6 2 Influence Increases 1409 | 40 466 821 20 62 . Destroy 0b10 Robot/C 900 | . 320 540 . 40 . Destroy 0b10 Robot/NC 125 | 40 25 45 15 . . Destroy Leader 238 | . 86 128 4 20 . Successful Hack 22 | . 9 11 . 2 . Disable Machine 15 | . . 15 . . . Destroy Structure 34 | . 11 22 1 . . Partial Spotted 15 | . . 15 . . . Lose Combat Pursuer 60 | . 15 45 . . . Influence Decreases 1409 | 40 465 480 328 76 20 Entered New Map 231 | . . 1 198 19 13 Time Decay 1109 | 40 446 429 130 57 7 Lost Part 69 | . 19 50 . . . Squads Dispatched 5 | . 5 . . . . Investigation 2 | . 2 . . . . Extermination . | . . . . . . Reinforcement 3 | . 3 . . . . Assault . | . . . . . . Garrison . | . . . . . . Intercept . | . . . . . . Searches Triggered . | . . . . . . Construction Impeded . | . . . . . . Haulers Reinforced . | . . . . . . Active Scanning Responses . | . . . . . . Cargo Convoy Interrupts . | . . . . . . Stealth | -11 -10 -9 -8 -7 -7 --------- Run | Yrd Mat Mat Mat Fac Was Distress Signals 4 | . 2 1 . 1 . Communications Jammed . | . . . . . . Distress Signals . | . . . . . . Times Spotted 71 | . 25 35 1 6 4 Peak Tracking Total 7 | . 4 7 . 2 4 Tactical Retreats 2 | . 1 1 . . . Traps | -11 -10 -9 -8 -7 -7 ------- Run | Yrd Mat Mat Mat Fac Was Traps Triggered 6 | . 2 . 2 2 . Indirectly . | . . . . . . Trap Hack Attempts . | . . . . . . Triggered . | . . . . . . Disarmed . | . . . . . . Reprogrammed . | . . . . . . Reused . | . . . . . . Traps Extracted . | . . . . . . Installed . | . . . . . . Triggered . | . . . . . . Machines | -11 -10 -9 -8 -7 -7 ---------- Run | Yrd Mat Mat Mat Fac Was Machines Disabled 1 | . . 1 . . . Max in Single Turn 1 | . . 1 . . . Machines Repaired . | . . . . . . Machines Dismantled . | . . . . . . Machines Sabotaged . | . . . . . . Overloaded Fab Kills . | . . . . . . Hacking | -11 -10 -9 -8 -7 -7 --------- Run | Yrd Mat Mat Mat Fac Was Machines Accessed 13 | . 6 5 . 2 . Terminals 12 | . 6 5 . 1 . Fabricators . | . . . . . . Repair Stations . | . . . . . . Recycling Units . | . . . . . . Scanalyzers 1 | . . . . 1 . Garrison Access . | . . . . . . Total Hacks 30 | . 13 13 . 4 . Successful 15 | . 8 5 . 2 . Failed 14 | . 5 8 . 1 . Catastrophic 3 | . . 3 . . . Database Lockouts 1 | . . . . 1 . Manual 6 | . 2 4 . . . Terminals 27 | . 13 13 . 1 . Fabricators . | . . . . . . Repair Stations . | . . . . . . Recycling Units . | . . . . . . Scanalyzers 3 | . . . . 3 . Garrison Access . | . . . . . . Terminal Hacks 13 | . 7 5 . 1 . Prototype ID Bank 2 | . 1 1 . . . Open DSF 1 | . . . . 1 . Branch Access Points 1 | . 1 . . . . Alert Level 2 | . 1 1 . . . Locate Traps 2 | . 1 1 . . . Dispatch Records 1 | . 1 . . . . Hauler Manifests 1 | . 1 . . . . Registered Components 1 | . . 1 . . . Zone Layout 2 | . 1 1 . . . Fabricator Hacks . | . . . . . . Repair Station Hacks . | . . . . . . Recycling Unit Hacks . | . . . . . . Scanalyzer 1 | . . . . 1 . Retrieve Study 1 | . . . . 1 . Garrison Access Hacks . | . . . . . . Unauthorized Hacks 1 | . 1 . . . . Terminals 1 | . 1 . . . . Botnet 1 | . 1 . . . . Fabricators . | . . . . . . Repair Stations . | . . . . . . Recycling Units . | . . . . . . Scanalyzers . | . . . . . . Garrison Access . | . . . . . . Data Cores Recovered 1 | . 1 . . . . Used . | . . . . . . Hacking Detections 11 | . 4 5 . 2 . Full Trace Events . | . . . . . . Feedback Events . | . . . . . . Feedback Blocked . | . . . . . . Robot Schematics Acquired . | . . . . . . Robots Built . | . . . . . . Authchips . | . . . . . . Time . | . . . . . . Total Robot Build Rating . | . . . . . . Part Schematics Acquired . | . . . . . . Parts Built . | . . . . . . Authchips . | . . . . . . Time . | . . . . . . Total Part Build Rating . | . . . . . . Part Studies Acquired 1 | . . . . 1 . Parts Repaired . | . . . . . . Time . | . . . . . . Parts Recycled . | . . . . . . Recycled Matter . | . . . . . . Retrieved Matter . | . . . . . . Retrieved Components . | . . . . . . Parts Scanalyzed . | . . . . . . Part Schematics Acquired . | . . . . . . Parts Damaged . | . . . . . . Bothacking | -11 -10 -9 -8 -7 -7 ------------ Run | Yrd Mat Mat Mat Fac Was Used RIF Installer . | . . . . . . Robots Hacked . | . . . . . . Non-combat . | . . . . . . Combat . | . . . . . . Robot Hacks Applied . | . . . . . . Relay Couplers Released . | . . . . . . Fabnet Peak Effective % . | . . . . . . Robots Rewired . | . . . . . . Allies Hacked . | . . . . . . Hacks Repelled . | . . . . . . Allies | -11 -10 -9 -8 -7 -7 -------- Run | Yrd Mat Mat Mat Fac Was Total Allies . | . . . . . . Largest Group . | . . . . . . Highest-Rated Group . | . . . . . . Highest-Rated Ally . | . . . . . . Total Orders . | . . . . . . Ally Attacks . | . . . . . . Total Damage . | . . . . . . Kills . | . . . . . . Allies Corrupted . | . . . . . . Allies Melted . | . . . . . . Intel | -11 -10 -9 -8 -7 -7 ------- Run | Yrd Mat Mat Mat Fac Was Active Infowar (turns) 792 | 38 112 274 . 308 60 Terrain 137 | . . 137 . . . Seismic 655 | 38 112 137 . 308 60 Robot Analysis Total . | . . . . . . Derelict Logs Recovered . | . . . . . . Drone Launches . | . . . . . . Drone Recoveries . | . . . . . . Exploration | -11 -10 -9 -8 -7 -7 ------------- Run | Yrd Mat Mat Mat Fac Was Turns Passed 3258 | 125 1309 1159 274 331 60 Spaces Moved 1843 | 62 798 491 169 271 52 Core . | . . . . . . Treads 521 | . . 457 64 . . Legs 894 | 62 798 34 . . . Wheels 428 | . . . 105 271 52 Hover . | . . . . . . Flight . | . . . . . . Fastest Speed 90 | 120 120 120 115 105 90 Average Speed 132 | 120 126 157 132 111 100 Slowest Speed 260 | 120 190 260 160 115 105 Overloaded Moves . | . . . . . . Propulsion Burnouts . | . . . . . . Robots Hopped . | . . . . . . Potential Cave-ins . | . . . . . . Cave-ins Triggered . | . . . . . . Exploration Rate (%) 37 | 4 87 57 17 10 48 Regions Visited 5 Branch Regions . Pre-discovered Areas . | . . . . . . Known Exits Taken . | . . . . . . Unknown Exits Taken 4 | 1 1 1 1 . . Scrap Searched . | . . . . . . Spaces Dug 10 | . 8 2 . . . Terrain Destroyed 33 | . 9 24 . . . Melee . | . . . . . . Projectile 11 | . 9 2 . . . AOE 22 | . . 22 . . . Terrain Rammed . | . . . . . . Walls Destroyed . | . . . . . . Machines Disabled . | . . . . . . Actions | -11 -10 -9 -8 -7 -7 --------- Run | Yrd Mat Mat Mat Fac Was Total 2284 | 85 938 705 211 287 58 Wait 80 | 4 25 45 1 . 5 Move 1839 | 61 797 490 168 271 52 Hop . | . . . . . . Pick Up 41 | 3 10 15 9 4 . Fast Attach 18 | 1 4 6 6 . 1 Attach 11 | . 1 6 2 2 . Detach 5 | . 1 3 1 . . Swap 39 | 1 12 22 3 1 . Drop 44 | 1 8 21 12 2 . Fire 205 | 14 79 97 8 7 . Melee 1 | . . . 1 . . Ram . | . . . . . . Kick 1 | . 1 . . . . Crush . | . . . . . . Escape Stasis . | . . . . . . Rewire . | . . . . . . Trap . | . . . . . . Miscellaneous . | . . . . . . Route ------- -11/Scrapyard -10/Materials (discovered 3 exits: *Mat x2 / *Min) -9/Materials -8/Materials -7/Factory -7/Waste History --------- Turn | Location | Event 24 | -11/Scrapyard | Discovered new exit (range 3) 126 | -11/Scrapyard | Entered Materials 310 | -10/Materials | Build established: Mutant 333 | -10/Materials | Discovered new exit (range 5) 405 | -10/Materials | Identified exit to Mines 611 | -10/Materials | Lost 4 parts (1p1n1u1w) 653 | -10/Materials | Core integrity fell below 50% 787 | -10/Materials | Discovered new exit (range 3) 946 | -10/Materials | Build established: Scavenger-Mutant 1435 | -10/Materials | Entered another Materials area 1435 | -9/Materials | Evolved 2 slots: Propulsion x1, Utility x1 2263 | -9/Materials | Core integrity fell below 50% 2590 | -9/Materials | Discovered new exit (range 3) 2594 | -9/Materials | Entered another Materials area 2594 | -8/Materials | Evolved 2 slots: Propulsion x1, Weapon x1 2865 | -8/Materials | Discovered new exit (range 3) 2868 | -8/Materials | Entered Factory 2868 | -7/Factory | Evolved 2 slots: Power x1, Utility x1 3090 | -7/Factory | Central database locked down 3180 | -7/Factory | Build established: Gunner 3199 | -7/Factory | Sucked down chute 3199 | -7/Factory | Entered Waste 3207 | -7/Waste | Spotted C-40 Crusher 3214 | -7/Waste | EMP discharged 3220 | -7/Waste | Spotted C-40 Crusher 3223 | -7/Waste | Spotted C-40 Crusher 3225 | -7/Waste | Spotted C-40 Crusher 3237 | -7/Waste | Spotted C-40 Crusher 3241 | -7/Waste | Crushed by Compactor (1 part destroyed, 2 dropped) 3257 | -7/Waste | Spotted C-40 Crusher 3258 | -7/Waste | Crushed by Compactor (0 parts destroyed, 1 dropped) 3259 | -7/Waste | Self-destructed Last Messages --------------- 03171_ Y-54 Guardian heat damages Imp. Light Armor Plating. 03173_ Y-54 Guardian heat spikes uncontrollably. 03174_ Y-54 Guardian heat damages core (-13). 03174_ Lgt. Treads melted. 03187_ K-01 Serf collects debris. 03199_ Triggered Chute Trap. 03199_ A hatch slides open and sucks a vortex of air into the floor. LOCATION=UNKNOWN GOAL=ESCAPE 03204_ ALERT: Foreign system detected. Charging EMP. 03214_ System corrupted (+8). 03222_ System corrupted: Lgt. Ion Engine rejected. 03222_ Acquired Lgt. Ion Engine. 03240_ System corrupted: Matter fused (-7). 03241_ Hvy. Ion Engine crushed. 03241_ Adv. Beam Rifle crushed. 03241_ Lgt. Ion Engine crushed. 03241_ Adv. Beam Rifle destroyed. 03244_ Lgt. Ion Engine crushed. 03245_ Adv. Beam Rifle crushed. Map ----- +----------------------------------------------------+ | ?????????????????????????????????????????????????? | | ?????????????????????????????????????????????????? | | ?????????????????????????????????????????????????? | | ?????????????????????????????????????????????????? | | ?????????????????????????????????????????????????? | | ?????????????????????????????????????????????????? | | ?????????????????????????????????????????????????? | | ?????????????????????????????????????????????????? | | ?????????????????????????????????????????????????? | | ?????????????????????????????????????????????????? | | ?????????????????????????????????????????????????? | | ?????????????????????????????????????????????????? | | ?????????????????????????????????????????????????? | | ?????????????????????????????????????????????????? | | ?????????????????????????????????????????????????? | | ?????????????????????????????????????????????????? | | ??????????????????????##########?????????????????? | | ??????????????????????# #?????????????????? | | ??? ??????????????????# #?????????????????? | | ? ?????????????????# #?????????????????? | | ?????????????????# #?????????????????? | | ????????????????# #?????????????????? | | ????????????????# #?????????????????? | | ????????????????# CC #?????????????????? | | ??????######????# CC #?????????????????? | | # #??????# #????###@ ###?????????????????? | | # #??????# #??????#CC #???????????????????? | | # #??????# #??????#CC #???????????????????? | | # #??????# #??????# CC#???????????????????? | | # ######## ######## CC#???????????????????? | | #???????????????????? | | " #???????????????????? | | #???????????????????? | | = #???????????????????? | | # ######## ######## #???????????????????? | | # #??????# #??????# #???????????????????? | | # #??????# #??????# #???????????????????? | | # #??????# #??????# #???????????????????? | | # #??????# #??????# #???????????????????? | | #??????# #??????# C???????????????????? | | #??????# #??????# ??????????????????? | | #??????# #??????# ?????????????????? | | #??????# #??????# ?????????????????? | | # #??????# #??????? ###?????????????????? | | # #??????# #??????? ????????????????????? | | # #??????# #???????? ??????????????????????? | | # #??????# #???????????????????????????????? | | # #??????# #???????????????????????????????? | | #??????# #???????????????????????????????? | | #??????# #???????????????????????????????? | +----------------------------------------------------+ Best States ------------- Heat Dissipation 61 Energy Generation 19 Energy Capacity 305 Matter Stores 500 Matter Capacity 500 Sight Range 16 Terrain Scan Range 16 Terrain Scan Density 85 Armor Coverage 300 Evasion (%) 55 Targeting Accuracy 6 Recoil Reduction 4 Item Schematics ----------------- None Robot Schematics ------------------ None Fabricated ------------ Nothing Repaired ---------- Nothing Studied --------- Arm. Huge Wheel | -7/Factory | Hacked Alien Tech Used ----------------- None Achievements -------------- None Challenges ------------ None Game ------ Seed TractorCoreFlightbrick Manual? 0 Play Time 00:41:39 Cumulative 189.7 hours Start 2026.02.02 @ 19:23:53 End 2026.02.03 @ 18:29:03 Sessions 3 Manual Loads 0 Difficulty Rogue Special Mode None Game No. 314 Rogue 310 Adventurer 0 Explorer 4 Win Type - Total 0 Types 0/0/0/0/0/0/0/0/0/0 Lore% 27 Gallery% 44 Achievement% 30 Wizard Run 0 Options --------- Layout 0 ASCII 0 Keyboard 1 Movement Arrows Keybinds 0 Fullscreen 1 Font 24/Smallcaps Map View 183x50 Zoom Use 0% Tactical HUD 1 Map Filters NONE Filters NONE Steam 1 RUN: 2b6a67b5-bd00-4b4f-b4e0-697825e50824